[Event "MCR rapid mládeže 2023 U16"]
[Site "Harachov, Czech Republic"]
[Date "2023.09.09"]
[Round "1.11"]
[White "Kammova, Katerina"]
[Black "Urvalkova, Ema"]
[Result "1-0"]
[TimeControl "20min+5s/move"]
[WhiteElo "1393"]
[BlackElo "1072"]

1. e4 {[%clk 00:20:02]} {[%emt 00:00:07]} c5 {[%clk 00:20:09]} {[%emt
00:00:02]} 2. Be2 {[%clk 00:20:02]} {[%emt 00:00:05]} Nc6 {[%clk 00:20:12]}
{[%emt 00:00:02]} 3. f4 {[%clk 00:20:03]} {[%emt 00:00:04]} g6 {[%clk
00:20:15]} {[%emt 00:00:02]} 4. Nf3 {[%clk 00:20:04]} {[%emt 00:00:03]} Bg7
{[%clk 00:20:18]} {[%emt 00:00:02]} 5. d3 {[%clk 00:20:02]} {[%emt 00:00:07]}
d5 {[%clk 00:20:07]} {[%emt 00:00:16]} 6. c3 {[%clk 00:18:57]} Nh6 {[%clk
00:19:45]} {[%emt 00:01:38]} 7. O-O {[%clk 00:18:49]} O-O {[%clk 00:19:35]}
{[%emt 00:00:26]} 8. Na3 {[%clk 00:18:26]} a6 {[%clk 00:19:22]} {[%emt
00:00:47]} 9. Nc2 {[%clk 00:18:17]} b5 {[%clk 00:18:52]} {[%emt 00:00:48]} 10.
e5 {[%clk 00:17:26]} {[%emt 00:00:56]} Bf5 {[%clk 00:17:06]} {[%emt 00:01:51]}
11. d4 {[%clk 00:15:19]} {[%emt 00:02:12]} Bxc2 {[%clk 00:15:50]} {[%emt
00:01:22]} 12. Qxc2 {[%clk 00:15:01]} {[%emt 00:00:22]} Qb6 {[%clk 00:15:46]}
{[%emt 00:00:08]} 13. Be3 {[%clk 00:12:57]} {[%emt 00:02:09]} cxd4 {[%clk
00:14:31]} {[%emt 00:01:21]} 14. cxd4 {[%clk 00:11:50]} {[%emt 00:01:12]} Nf5
{[%clk 00:14:14]} {[%emt 00:00:22]} 15. Qd2 {[%clk 00:11:27]} {[%emt 00:00:27]}
Rac8 {[%clk 00:13:35]} {[%emt 00:00:44]} 16. Bf2 {[%clk 00:11:16]} {[%emt
00:00:16]} e6 {[%clk 00:12:56]} {[%emt 00:00:45]} 17. Rac1 {[%clk 00:10:49]}
{[%emt 00:00:31]} f6 {[%clk 00:12:26]} {[%emt 00:00:35]} 18. Kh1 {[%clk
00:10:16]} {[%emt 00:00:38]} fxe5 {[%clk 00:12:02]} {[%emt 00:00:30]} 19. dxe5
{[%clk 00:09:14]} {[%emt 00:01:07]} Qa5 {[%clk 00:11:00]} {[%emt 00:01:07]} 20.
Qxa5 {[%clk 00:08:47]} {[%emt 00:00:31]} Nxa5 {[%clk 00:11:03]} {[%emt
00:00:03]} 21. Ng5 {[%clk 00:08:26]} {[%emt 00:00:25]} Rxc1 {[%clk 00:10:06]}
{[%emt 00:01:02]} 22. Rxc1 {[%clk 00:08:28]} {[%emt 00:00:03]} Re8 {[%clk
00:09:50]} {[%emt 00:00:20]} 23. Be1 {[%clk 00:07:04]} {[%emt 00:01:30]} Nc4
{[%clk 00:09:00]} {[%emt 00:00:55]} 24. b3 {[%clk 00:03:58]} {[%emt 00:03:11]}
Nd4 {[%clk 00:05:31]} {[%emt 00:03:35]} 25. Bxc4 {[%clk 00:03:25]} {[%emt
00:00:38]} dxc4 {[%clk 00:05:30]} {[%emt 00:00:06]} 26. bxc4 {[%clk 00:02:30]}
{[%emt 00:00:59]} Rc8 {[%clk 00:05:13]} {[%emt 00:00:22]} 27. g3 {[%clk
00:01:36]} {[%emt 00:00:59]} h6 {[%clk 00:04:35]} {[%emt 00:00:42]} 28. Ne4
{[%clk 00:01:19]} {[%emt 00:00:22]} Kh7 {[%clk 00:03:13]} {[%emt 00:01:28]} 29.
Bf2 {[%clk 00:01:20]} {[%emt 00:00:03]} Nf5 {[%clk 00:01:50]} {[%emt 00:01:27]}
30. c5 {[%clk 00:01:04]} {[%emt 00:00:23]} Bf8 {[%clk 00:01:47]} {[%emt
00:00:07]} 31. Kg2 {[%clk 00:00:58]} {[%emt 00:00:12]} Be7 {[%clk 00:01:11]}
{[%emt 00:00:40]} 32. g4 {[%clk 00:00:46]} {[%emt 00:00:18]} Ng7 {[%clk
00:01:00]} {[%emt 00:00:15]} 33. Be3 {[%clk 00:00:38]} {[%emt 00:00:14]} Rc6
{[%clk 00:00:45]} {[%emt 00:00:20]} 34. Nd6 {[%clk 00:00:38]} {[%emt 00:00:04]}
Kg8 {[%clk 00:00:25]} {[%emt 00:00:25]} 35. Kf3 {[%clk 00:00:42]} {[%emt
00:00:01]} Kf8 {[%clk 00:00:27]} {[%emt 00:00:04]} 36. h3 {[%clk 00:00:45]}
{[%emt 00:00:01]} Ne8 {[%clk 00:00:25]} {[%emt 00:00:08]} 37. Ke4 {[%clk
00:00:38]} {[%emt 00:00:11]} Nxd6+ {[%clk 00:00:23]} {[%emt 00:00:07]} 38. cxd6
{[%clk 00:00:42]} {[%emt 00:00:01]} Rxc1 {[%clk 00:00:15]} {[%emt 00:00:14]} 39.
dxe7+ {[%clk 00:00:45]} {[%emt 00:00:01]} Kxe7 {[%clk 00:00:15]} {[%emt
00:00:05]} 40. Bxc1 {[%clk 00:00:49]} {[%emt 00:00:01]} Kf7 {[%clk 00:00:15]}
{[%emt 00:00:05]} 41. Ba3 {[%clk 00:00:53]} a5 {[%clk 00:00:18]} {[%emt
00:00:02]} 42. Bd6 {[%clk 00:00:57]} b4 {[%clk 00:00:19]} {[%emt 00:00:05]} 43.
Kd4 {[%clk 00:01:01]} {[%emt 00:00:01]} Ke8 {[%clk 00:00:21]} {[%emt 00:00:03]}
44. Kc5 {[%clk 00:01:04]} {[%emt 00:00:01]} a4 {[%clk 00:00:22]} {[%emt
00:00:04]} 45. Kxb4 {[%clk 00:01:08]} {[%emt 00:00:01]} Kd7 {[%clk 00:00:24]}
{[%emt 00:00:03]} 46. Kxa4 {[%clk 00:01:12]} {[%emt 00:00:01]} Kc6 {[%clk
00:00:28]} {[%emt 00:00:01]} 47. Kb4 {[%clk 00:01:09]} {[%emt 00:00:07]} Kd5
{[%clk 00:00:30]} {[%emt 00:00:04]} 48. a4 {[%clk 00:01:08]} {[%emt 00:00:05]}
Ke4 {[%clk 00:00:34]} {[%emt 00:00:01]} 49. f5 {[%clk 00:01:06]} {[%emt
00:00:07]} gxf5 {[%clk 00:00:24]} {[%emt 00:00:16]} 50. gxf5 {[%clk 00:01:10]}
Kxf5 {[%clk 00:00:27]} {[%emt 00:00:02]} 51. a5 {[%clk 00:01:12]} {[%emt
00:00:02]} Kf4 {[%clk 00:00:24]} {[%emt 00:00:06]} 52. h4 {[%clk 00:01:12]}
{[%emt 00:00:07]} Kg4 {[%clk 00:00:28]} {[%emt 00:00:01]} 53. Be7 {[%clk
00:01:16]} {[%emt 00:00:01]} Kf5 {[%clk 00:00:31]} {[%emt 00:00:02]} 54. Bf6
{[%clk 00:01:20]} {[%emt 00:00:01]} 1-0

[Event "MCR rapid mládeže 2023 U16"]
[Site "Harachov, Czech Republic"]
[Date "2023.09.09"]
[Round "1.12"]
[White "Kovarova, Karolina"]
[Black "Mikesova, Lenka"]
[Result "0-1"]
[TimeControl "20min+5s/move"]
[WhiteElo "1006"]
[BlackElo "1410"]

1. e4 {[%clk 00:20:08]} e5 {[%clk 00:20:09]} {[%emt 00:00:02]} 2. Nf3 {[%clk
00:20:10]} {[%emt 00:00:02]} Nc6 {[%clk 00:20:12]} {[%emt 00:00:02]} 3. Bc4
{[%clk 00:20:13]} {[%emt 00:00:02]} Nf6 {[%clk 00:20:06]} {[%emt 00:00:11]} 4.
d3 {[%clk 00:20:14]} {[%emt 00:00:05]} Be7 {[%clk 00:19:44]} {[%emt 00:00:27]}
5. Nc3 {[%clk 00:20:12]} {[%emt 00:00:07]} d6 {[%clk 00:19:19]} {[%emt
00:00:29]} 6. h3 {[%clk 00:20:00]} {[%emt 00:00:16]} O-O {[%clk 00:19:09]}
{[%emt 00:00:21]} 7. Bg5 {[%clk 00:19:52]} {[%emt 00:00:18]} Be6 {[%clk
00:18:05]} {[%emt 00:01:09]} 8. Bb3 {[%clk 00:19:19]} {[%emt 00:00:38]} Bxb3
{[%clk 00:14:58]} {[%emt 00:03:12]} 9. axb3 {[%clk 00:18:42]} {[%emt 00:00:41]}
Nd4 {[%clk 00:14:01]} {[%emt 00:01:03]} 10. Nd5 {[%clk 00:17:03]} {[%emt
00:01:44]} Nxd5 {[%clk 00:13:50]} {[%emt 00:00:16]} 11. Bxe7 {[%clk 00:16:37]}
{[%emt 00:00:31]} Nxe7 {[%clk 00:13:53]} {[%emt 00:00:02]} 12. Nd2 {[%clk
00:15:22]} {[%emt 00:01:19]} f5 {[%clk 00:13:20]} {[%emt 00:00:39]} 13. c3
{[%clk 00:14:38]} {[%emt 00:00:49]} Ndc6 {[%clk 00:13:15]} {[%emt 00:00:10]} 14.
O-O {[%clk 00:13:38]} {[%emt 00:01:05]} fxe4 {[%clk 00:13:05]} {[%emt
00:00:16]} 15. Nxe4 {[%clk 00:12:56]} {[%emt 00:00:46]} Nd5 {[%clk 00:12:25]}
{[%emt 00:00:46]} 16. Qh5 {[%clk 00:10:34]} {[%emt 00:02:26]} Nf6 {[%clk
00:12:04]} {[%emt 00:00:26]} 17. Qe2 {[%clk 00:08:15]} {[%emt 00:02:21]} Nxe4
{[%clk 00:11:56]} {[%emt 00:00:16]} 18. Qxe4 {[%clk 00:07:50]} {[%emt
00:00:31]} Qf6 {[%clk 00:11:32]} {[%emt 00:00:29]} 19. Qd5+ {[%clk 00:06:50]}
{[%emt 00:01:04]} Qf7 {[%clk 00:11:35]} {[%emt 00:00:02]} 20. Qb5 {[%clk
00:06:44]} {[%emt 00:00:12]} Nd8 {[%clk 00:09:25]} {[%emt 00:02:15]} 21. Rae1
{[%clk 00:05:48]} {[%emt 00:01:00]} a6 {[%clk 00:09:07]} {[%emt 00:00:24]} 22.
Qb4 {[%clk 00:05:34]} {[%emt 00:00:19]} Rb8 {[%clk 00:08:34]} {[%emt 00:00:38]}
23. c4 {[%clk 00:03:49]} {[%emt 00:01:51]} Nc6 {[%clk 00:08:33]} {[%emt
00:00:07]} 24. Qd2 {[%clk 00:03:13]} {[%emt 00:00:40]} Nd4 {[%clk 00:08:33]}
{[%emt 00:00:05]} 25. Qd1 {[%clk 00:02:12]} {[%emt 00:01:07]} Qg6 {[%clk
00:08:17]} {[%emt 00:00:21]} 26. f3 {[%clk 00:01:35]} {[%emt 00:00:40]} c5
{[%clk 00:06:24]} {[%emt 00:02:01]} 27. Re4 {[%clk 00:01:11]} {[%emt 00:00:29]}
Rf4 {[%clk 00:05:34]} {[%emt 00:00:55]} 28. Re3 {[%clk 00:00:46]} {[%emt
00:00:30]} b5 {[%clk 00:05:21]} {[%emt 00:00:18]} 29. cxb5 {[%clk 00:00:40]}
{[%emt 00:00:11]} Rxb5 {[%clk 00:05:19]} {[%emt 00:00:07]} 30. Rf2 {[%clk
00:00:18]} {[%emt 00:00:26]} Rxb3 {[%clk 00:05:12]} {[%emt 00:00:12]} 31. Re4
{[%clk 00:00:17]} {[%emt 00:00:07]} Rb8 {[%clk 00:04:15]} {[%emt 00:01:02]} 32.
Qa4 {[%clk 00:00:12]} {[%emt 00:00:10]} Nxf3+ {[%clk 00:02:19]} {[%emt
00:02:00]} 33. Kf1 {[%clk 00:00:08]} {[%emt 00:00:09]} Nh2+ {[%clk 00:01:37]}
{[%emt 00:00:48]} 34. Kg1 {[%clk 00:00:08]} {[%emt 00:00:05]} Rxf2 {[%clk
00:01:36]} {[%emt 00:00:06]} 35. Kxf2 {[%clk 00:00:10]} {[%emt 00:00:04]} Rf8+
{[%clk 00:01:33]} {[%emt 00:00:07]} 36. Ke3 {[%clk 00:00:10]} {[%emt 00:00:05]}
Qg3+ {[%clk 00:01:24]} {[%emt 00:00:14]} 37. Kd2 {[%clk 00:00:13]} {[%emt
00:00:03]} Qxg2+ {[%clk 00:00:59]} {[%emt 00:00:31]} 38. Kc3 {[%clk 00:00:16]}
{[%emt 00:00:02]} Rb8 {[%clk 00:00:25]} {[%emt 00:00:39]} 39. Re3 {[%clk
00:00:08]} {[%emt 00:00:13]} Qxb2+ {[%clk 00:00:26]} {[%emt 00:00:03]} 40. Kc4
{[%clk 00:00:07]} {[%emt 00:00:06]} Rb4+ {[%clk 00:00:28]} {[%emt 00:00:04]} 41.
Qxb4 {[%clk 00:00:06]} {[%emt 00:00:06]} Qxb4+ {[%clk 00:00:31]} {[%emt
00:00:01]} 42. Kd5 {[%clk 00:00:04]} {[%emt 00:00:03]} Qd4+ {[%clk 00:00:35]}
{[%emt 00:00:01]} 43. Kc6 {[%clk 00:00:10]} {[%emt 00:00:04]} Qxe3 {[%clk
00:00:36]} {[%emt 00:00:04]} 44. Kd7 {[%clk 00:00:11]} {[%emt 00:00:04]} Qxh3+
{[%emt 00:00:12]} 0-1

[Event "MCR rapid mládeže 2023 U16"]
[Site "Harachov, Czech Republic"]
[Date "2023.09.09"]
[Round "1.13"]
[White "Buchtova, Viktorie"]
[Black "Stehlikova, Vanessa"]
[Result "1-0"]
[TimeControl "20min+5s/move"]
[WhiteElo "1556"]
[BlackElo "1165"]

1. e4 {[%clk 00:20:08]} {[%emt 00:00:02]} e5 {[%clk 00:20:07]} {[%emt
00:00:03]} 2. Nf3 {[%clk 00:20:11]} {[%emt 00:00:01]} Nc6 {[%clk 00:20:02]}
{[%emt 00:00:10]} 3. Bb5 {[%clk 00:20:15]} {[%emt 00:00:02]} Nf6 {[%clk
00:19:02]} {[%emt 00:01:05]} 4. O-O {[%clk 00:20:17]} {[%emt 00:00:03]} Nxe4
{[%clk 00:18:15]} {[%emt 00:00:52]} 5. Re1 {[%clk 00:20:16]} {[%emt 00:00:06]}
Nf6 {[%clk 00:18:18]} {[%emt 00:00:02]} 6. Nxe5 {[%clk 00:20:01]} {[%emt
00:00:20]} Nxe5 {[%clk 00:18:19]} {[%emt 00:00:05]} 7. Rxe5+ {[%clk 00:20:04]}
{[%emt 00:00:02]} Be7 {[%clk 00:18:21]} {[%emt 00:00:03]} 8. d4 {[%clk
00:16:35]} {[%emt 00:03:35]} O-O {[%clk 00:18:02]} {[%emt 00:00:24]} 9. c3
{[%clk 00:16:31]} {[%emt 00:00:09]} c6 {[%clk 00:17:37]} {[%emt 00:00:29]} 10.
Bd3 {[%clk 00:16:33]} {[%emt 00:00:03]} d5 {[%clk 00:16:58]} {[%emt 00:00:44]}
11. Qc2 {[%clk 00:14:08]} {[%emt 00:02:30]} Bd6 {[%clk 00:15:29]} {[%emt
00:01:34]} 12. Re1 {[%clk 00:12:40]} {[%emt 00:01:33]} h6 {[%clk 00:15:00]}
{[%emt 00:00:33]} 13. Nd2 {[%clk 00:11:23]} {[%emt 00:01:23]} Re8 {[%clk
00:14:49]} {[%emt 00:00:17]} 14. Rxe8+ {[%clk 00:11:26]} {[%emt 00:00:02]} Qxe8
{[%clk 00:14:52]} {[%emt 00:00:02]} 15. Nf1 {[%clk 00:11:26]} {[%emt 00:00:04]}
Be6 {[%clk 00:14:21]} {[%emt 00:00:37]} 16. Bd2 {[%clk 00:10:58]} {[%emt
00:00:34]} Qf8 {[%clk 00:14:03]} {[%emt 00:00:23]} 17. Ng3 {[%clk 00:10:52]}
{[%emt 00:00:11]} Bxg3 {[%clk 00:11:03]} {[%emt 00:03:05]} 18. hxg3 {[%clk
00:10:53]} {[%emt 00:00:04]} Re8 {[%clk 00:10:41]} {[%emt 00:00:27]} 19. Re1
{[%clk 00:10:54]} {[%emt 00:00:03]} Kh8 {[%clk 00:08:14]} {[%emt 00:02:32]} 20.
Kf1 {[%clk 00:06:00]} {[%emt 00:04:59]} Qg8 {[%clk 00:07:52]} {[%emt 00:00:27]}
21. Bf5 {[%clk 00:05:42]} {[%emt 00:00:24]} Bxf5 {[%clk 00:05:10]} {[%emt
00:02:46]} 22. Qxf5 {[%clk 00:05:45]} {[%emt 00:00:02]} Rxe1+ {[%clk 00:04:59]}
{[%emt 00:00:16]} 23. Bxe1 {[%clk 00:05:48]} {[%emt 00:00:03]} Qe8 {[%clk
00:04:33]} {[%emt 00:00:30]} 24. Bd2 {[%clk 00:05:43]} {[%emt 00:00:10]} Qe6
{[%clk 00:04:18]} {[%emt 00:00:21]} 25. Qf4 {[%clk 00:05:17]} {[%emt 00:00:30]}
Ne4 {[%clk 00:03:25]} {[%emt 00:00:57]} 26. Qb8+ {[%clk 00:05:13]} {[%emt
00:00:10]} Kh7 {[%clk 00:03:24]} {[%emt 00:00:06]} 27. Bf4 {[%clk 00:02:27]}
{[%emt 00:02:52]} g5 {[%clk 00:02:21]} {[%emt 00:01:08]} 28. Be3 {[%clk
00:01:47]} {[%emt 00:00:45]} Qe7 {[%clk 00:01:56]} {[%emt 00:00:30]} 29. Ke2
{[%clk 00:01:18]} {[%emt 00:00:35]} a6 {[%clk 00:01:59]} {[%emt 00:00:02]} 30.
f3 {[%clk 00:00:57]} {[%emt 00:00:26]} Nf6 {[%clk 00:01:56]} {[%emt 00:00:07]}
31. Kf2 {[%clk 00:00:48]} {[%emt 00:00:15]} Kg6 {[%clk 00:00:46]} {[%emt
00:01:14]} 32. Qc8 {[%clk 00:00:41]} {[%emt 00:00:11]} h5 {[%clk 00:00:37]}
{[%emt 00:00:14]} 33. a3 {[%clk 00:00:18]} {[%emt 00:00:29]} 1-0

[Event "MCR rapid mládeže 2023 U16"]
[Site "Harachov, Czech Republic"]
[Date "2023.09.09"]
[Round "1.14"]
[White "Dufkova, Tereza"]
[Black "Kubatova, Beta"]
[Result "0-1"]
[TimeControl "20min+5s/move"]
[WhiteElo "1455"]
[BlackElo "1376"]

1. e4 {[%clk 00:20:07]} {[%emt 00:00:02]} c6 {[%clk 00:20:06]} {[%emt
00:00:05]} 2. d4 {[%clk 00:20:08]} {[%emt 00:00:05]} d5 {[%clk 00:20:08]}
{[%emt 00:00:02]} 3. f3 {[%clk 00:20:09]} {[%emt 00:00:03]} Qb6 {[%clk
00:18:28]} {[%emt 00:01:45]} 4. Bf4 {[%clk 00:19:25]} {[%emt 00:00:49]} Qxb2
{[%clk 00:15:21]} {[%emt 00:03:13]} 5. Nd2 {[%clk 00:19:16]} {[%emt 00:00:09]}
Qb6 {[%clk 00:14:51]} {[%emt 00:00:41]} 6. Nb3 {[%clk 00:15:46]} {[%emt
00:03:35]} dxe4 {[%clk 00:13:05]} {[%emt 00:01:52]} 7. fxe4 {[%clk 00:15:34]}
{[%emt 00:00:16]} Nf6 {[%clk 00:13:07]} {[%emt 00:00:03]} 8. Bd3 {[%clk
00:13:19]} {[%emt 00:02:20]} Bg4 {[%clk 00:12:48]} {[%emt 00:00:23]} 9. Nf3
{[%clk 00:12:48]} {[%emt 00:00:37]} e6 {[%clk 00:12:24]} {[%emt 00:00:29]} 10.
h3 {[%clk 00:12:10]} {[%emt 00:00:44]} Bh5 {[%clk 00:11:55]} {[%emt 00:00:34]}
11. g4 {[%clk 00:11:31]} {[%emt 00:00:43]} Bg6 {[%clk 00:11:56]} {[%emt
00:00:04]} 12. c3 {[%clk 00:11:28]} {[%emt 00:00:08]} Nxe4 {[%clk 00:11:10]}
{[%emt 00:00:52]} 13. Bxe4 {[%clk 00:10:32]} {[%emt 00:01:01]} Bxe4 {[%clk
00:11:11]} {[%emt 00:00:03]} 14. O-O {[%clk 00:10:06]} {[%emt 00:00:31]} Be7
{[%clk 00:10:45]} {[%emt 00:00:32]} 15. Re1 {[%clk 00:09:43]} {[%emt 00:00:28]}
Bxf3 {[%clk 00:10:24]} {[%emt 00:00:26]} 16. Qxf3 {[%clk 00:09:45]} {[%emt
00:00:03]} O-O {[%clk 00:10:22]} {[%emt 00:00:06]} 17. Qg3 {[%clk 00:09:01]}
{[%emt 00:00:49]} Qd8 {[%clk 00:09:53]} {[%emt 00:00:35]} 18. g5 {[%clk
00:08:28]} {[%emt 00:00:38]} Nd7 {[%clk 00:09:07]} {[%emt 00:00:51]} 19. h4
{[%clk 00:08:17]} {[%emt 00:00:15]} b6 {[%clk 00:08:49]} {[%emt 00:00:24]} 20.
h5 {[%clk 00:07:09]} {[%emt 00:01:13]} Qe8 {[%clk 00:08:29]} {[%emt 00:00:24]}
21. Qg4 {[%clk 00:07:00]} {[%emt 00:00:14]} Qd8 {[%clk 00:06:59]} {[%emt
00:01:35]} 22. Kf2 {[%clk 00:06:18]} {[%emt 00:00:47]} g6 {[%clk 00:05:51]}
{[%emt 00:01:14]} 23. Rh1 {[%clk 00:05:52]} {[%emt 00:00:32]} Qe8 {[%clk
00:04:13]} {[%emt 00:01:43]} 24. Nd2 {[%clk 00:05:41]} {[%emt 00:00:15]} c5
{[%clk 00:03:51]} {[%emt 00:00:27]} 25. Qh4 {[%clk 00:05:15]} {[%emt 00:00:30]}
f6 {[%clk 00:03:09]} {[%emt 00:00:47]} 26. hxg6 {[%clk 00:04:32]} {[%emt
00:00:49]} Qxg6 {[%clk 00:03:09]} {[%emt 00:00:05]} 27. Rag1 {[%clk 00:04:20]}
{[%emt 00:00:16]} fxg5 {[%emt 00:00:38]} 28. Qh2 {[%clk 00:03:58]} {[%emt
00:00:19]} Rxf4+ {[%clk 00:02:11]} {[%emt 00:00:39]} 29. Ke3 {[%clk 00:03:55]}
{[%emt 00:00:06]} cxd4+ {[%clk 00:01:44]} {[%emt 00:00:34]} 30. cxd4 {[%clk
00:03:57]} {[%emt 00:00:04]} Rc8 {[%clk 00:00:59]} {[%emt 00:00:49]} 31. Ke2
{[%clk 00:03:10]} {[%emt 00:00:53]} Rc2 {[%clk 00:00:55]} {[%emt 00:00:08]} 32.
Ke3 {[%clk 00:03:08]} {[%emt 00:00:06]} Rc3+ {[%clk 00:00:36]} {[%emt
00:00:24]} 33. Ke2 {[%clk 00:03:10]} {[%emt 00:00:03]} Bd6 {[%clk 00:00:14]}
{[%emt 00:00:28]} 34. Qg2 {[%clk 00:02:50]} {[%emt 00:00:25]} Kg7 {[%clk
00:00:11]} {[%emt 00:00:08]} 35. Rc1 {[%clk 00:02:44]} {[%emt 00:00:12]} Qd3+
{[%clk 00:00:12]} {[%emt 00:00:03]} 36. Ke1 {[%clk 00:02:35]} {[%emt 00:00:13]}
Rxc1# {[%clk 00:00:14]} {[%emt 00:00:04]} 0-1

[Event "MCR rapid mládeže 2023 U16"]
[Site "Harachov, Czech Republic"]
[Date "2023.09.09"]
[Round "1.15"]
[White "Mik, Tomas"]
[Black "Kala, Jakub"]
[Result "1-0"]
[TimeControl "20min+5s/move"]
[WhiteElo "1802"]
[BlackElo "1357"]

1. e4 {[%clk 00:20:08]} {[%emt 00:00:01]} c5 {[%clk 00:20:09]} {[%emt
00:00:02]} 2. Nf3 {[%clk 00:20:11]} {[%emt 00:00:01]} Nc6 {[%clk 00:20:13]}
{[%emt 00:00:01]} 3. d4 {[%clk 00:20:14]} {[%emt 00:00:02]} cxd4 {[%clk
00:20:16]} {[%emt 00:00:02]} 4. Nxd4 {[%clk 00:20:18]} {[%emt 00:00:01]} g6
{[%clk 00:20:17]} {[%emt 00:00:05]} 5. Nc3 {[%clk 00:20:20]} {[%emt 00:00:03]}
Bg7 {[%clk 00:20:20]} {[%emt 00:00:02]} 6. Be3 {[%clk 00:20:22]} {[%emt
00:00:02]} Nf6 {[%clk 00:20:23]} {[%emt 00:00:02]} 7. Nxc6 {[%clk 00:20:25]}
{[%emt 00:00:02]} bxc6 {[%clk 00:20:21]} {[%emt 00:00:07]} 8. e5 {[%clk
00:20:26]} {[%emt 00:00:05]} Nd5 {[%clk 00:18:17]} {[%emt 00:02:09]} 9. Nxd5
{[%clk 00:20:27]} {[%emt 00:00:04]} cxd5 {[%clk 00:18:21]} {[%emt 00:00:01]} 10.
Qxd5 {[%clk 00:20:26]} {[%emt 00:00:05]} Rb8 {[%clk 00:18:16]} {[%emt
00:00:10]} 11. Bc4 {[%clk 00:20:27]} {[%emt 00:00:05]} O-O {[%clk 00:17:34]}
{[%emt 00:00:48]} 12. O-O {[%clk 00:19:30]} {[%emt 00:01:00]} Rxb2 {[%clk
00:16:25]} {[%emt 00:01:14]} 13. Bb3 {[%clk 00:18:53]} {[%emt 00:00:43]} Qc7
{[%clk 00:14:29]} {[%emt 00:02:01]} 14. Bd4 {[%clk 00:17:25]} {[%emt 00:01:32]}
Bb7 {[%clk 00:12:31]} {[%emt 00:02:04]} 15. Qb5 {[%clk 00:15:44]} {[%emt
00:01:45]} Bc6 {[%clk 00:11:38]} {[%emt 00:00:58]} 16. Qe2 {[%clk 00:14:39]}
{[%emt 00:01:10]} Rxb3 {[%clk 00:09:25]} {[%emt 00:02:18]} 17. axb3 {[%clk
00:14:24]} {[%emt 00:00:21]} a5 {[%clk 00:09:19]} {[%emt 00:00:11]} 18. Qe3
{[%clk 00:13:16]} {[%emt 00:01:13]} Ra8 {[%clk 00:07:59]} {[%emt 00:01:24]} 19.
f3 {[%clk 00:11:05]} {[%emt 00:02:16]} Ra6 {[%clk 00:06:49]} {[%emt 00:01:16]}
20. Rfe1 {[%clk 00:09:57]} {[%emt 00:01:13]} a4 {[%clk 00:05:30]} {[%emt
00:01:25]} 21. bxa4 {[%clk 00:09:10]} {[%emt 00:00:51]} Rxa4 {[%clk 00:04:37]}
{[%emt 00:00:58]} 22. Rxa4 {[%clk 00:08:44]} {[%emt 00:00:31]} Bxa4 {[%emt
00:00:03]} 23. e6 {[%clk 00:08:01]} {[%emt 00:00:47]} Bxd4 {[%clk 00:02:43]}
{[%emt 00:02:02]} 24. Qxd4 {[%clk 00:07:49]} {[%emt 00:00:17]} Bc6 {[%clk
00:02:05]} {[%emt 00:00:42]} 25. exf7+ {[%clk 00:07:27]} {[%emt 00:00:27]} Kxf7
{[%clk 00:01:47]} {[%emt 00:00:24]} 26. Qh8 {[%clk 00:07:16]} {[%emt 00:00:15]}
d6 {[%clk 00:01:08]} {[%emt 00:00:45]} 27. Qxh7+ {[%clk 00:07:11]} {[%emt
00:00:09]} Kf6 {[%clk 00:01:03]} {[%emt 00:00:10]} 28. Qg8 {[%clk 00:06:26]}
{[%emt 00:00:51]} Bd7 {[%clk 00:00:46]} {[%emt 00:00:22]} 29. Qf8+ {[%clk
00:06:25]} {[%emt 00:00:05]} 1-0